fUSD/lending_fUSD_20241227
["ID","MTS","AMOUNT","RATE_DAILY","PERIOD"]
[346844071,1735320638007,-1087.12,0.00010828,2]
[346844073,1735320638017,-664.55,0.00010828,2]
[346844075,1735320638027,-1588.02,0.00010828,2]
[346844077,1735320638037,-561.44,0.00010828,2]
[346844078,1735320638047,-1149.31,0.00010828,2]
[346844080,1735320638057,-1056.51,0.00010828,2]
[346844081,1735320638067,-516.33,0.00010828,2]
[346844082,1735320638077,-702.03,0.00010828,2]
[346844084,1735320638089,-1061.08,0.00010828,2]
[346844086,1735320638099,-553.88,0.00010828,2]
[346844088,1735320638109,-500.0,0.00010828,2]
[346844090,1735320638119,-888.18,0.00010828,2]
[346844091,1735320638128,-626.84,0.00010828,2]
[346844092,1735320638139,-624.97,0.00010828,2]
[346844093,1735320638149,-618.18,0.00010828,2]
[346844094,1735320638158,-820.09,0.00010828,2]
[346844095,1735320638168,-803.88,0.00010828,2]
[346844096,1735320638178,-1129.18,0.00010828,2]
[346844097,1735320638188,-526.13,0.00010828,2]
[346844098,1735320638197,-572.85,0.00010828,2]
[346844099,1735320638207,-850.5,0.00010828,2]
[346844100,1735320638216,-650.86,0.00010828,2]
[346844101,1735320638225,-1888.29,0.00010828,2]
[346844102,1735320638235,-734.24,0.00010828,2]
[346844103,1735320638244,-623.67,0.00010828,2]
[346844104,1735320638254,-500.0,0.00010828,2]
[346844105,1735320638264,-727.3,0.00010828,2]
[346844106,1735320638274,-1653.5,0.00010828,2]
[346844107,1735320638284,-752.72,0.00010828,2]
[346844108,1735320638293,-1206.24,0.00010828,2]
[346844109,1735320638303,-500.0,0.00010828,2]
[346844110,1735320638312,-936.86,0.00010828,2]
[346844111,1735320638322,-1204.15,0.00010828,2]
[346844112,1735320638334,-500.0,0.00010828,2]
[346844113,1735320638343,-1590.26,0.00010828,2]
[346844114,1735320638354,-1015.72,0.00010828,2]
[346844115,1735320638364,-500.0,0.00010828,2]
[346844116,1735320638374,-1168.28,0.00010828,2]
[346844117,1735320638384,-601.22,0.00010828,2]
[346844118,1735320638393,-1398.85,0.00010828,2]
[346844119,1735320638403,-765.11,0.00010828,2]
[346844120,1735320638413,-633.3,0.00010828,2]
[346844121,1735320638423,-1714.33,0.00010828,2]
[346844122,1735320638433,-500.0,0.00010828,2]
[346844123,1735320638442,-677.35,0.00010828,2]
[346844124,1735320638452,-500.0,0.00010828,2]
[346844125,1735320638462,-721.0,0.00010828,2]
[346844126,1735320638472,-987.84,0.00010828,2]
[346844127,1735320638482,-773.06,0.00010828,2]
[346844129,1735320638492,-728.84,0.00010828,2]
[346844131,1735320638503,-1758.26,0.00010828,2]
[346844133,1735320638512,-1520.3,0.00010828,2]
[346844135,1735320638523,-1825.76,0.00010828,2]
[346844137,1735320638532,-500.0,0.00010828,2]
[346844139,1735320638542,-742.36,0.00010828,2]
[346844141,1735320638551,-650.08,0.00010828,2]
[346844143,1735320638560,-500.0,0.00010828,2]
[346844151,1735320638634,-907.47,0.00010828,2]
[346844153,1735320638644,-862.79,0.00010828,2]
[346844155,1735320638653,-1553.77,0.00010828,2]
[346844157,1735320638663,-1349.53,0.00010828,2]
[346844159,1735320638673,-500.0,0.00010828,2]
[346844161,1735320638684,-1829.29,0.00010828,2]
[346844163,1735320638695,-2349.6,0.00010828,2]
[346844165,1735320638704,-1694.17,0.00010828,2]
[346844167,1735320638713,-578.18,0.00010828,2]
[346844169,1735320638723,-8015.87,0.00010828,2]
[346844171,1735320638732,-500.0,0.00010828,2]
[346844173,1735320638741,-500.0,0.00010828,2]
[346844175,1735320638750,-2028.81,0.00010828,2]
[346844177,1735320638759,-1388.77,0.00010828,2]
[346844179,1735320638769,-1226.31,0.00010828,2]
[346844181,1735320638778,-754.29,0.00010828,2]
[346844183,1735320638787,-1254.92,0.00010828,2]
[346844185,1735320638796,-1795.62,0.00010828,2]
[346844187,1735320638806,-1018.25,0.00010828,2]
[346844189,1735320638815,-983.71,0.00010828,2]
[346844191,1735320638824,-3029.5,0.00010828,2]
[346844193,1735320638836,-500.0,0.00010828,2]
[346844195,1735320638845,-500.0,0.00010828,2]
[346844197,1735320638855,-500.0,0.00010828,2]
[346844199,1735320638865,-723.27,0.00010828,2]
[346844201,1735320638874,-500.0,0.00010828,2]
[346844203,1735320638884,-500.0,0.00010828,2]
[346844205,1735320638896,-500.0,0.00010828,2]
[346844207,1735320638905,-500.0,0.00010828,2]
[346844209,1735320638915,-1081.12,0.00010828,2]
[346844211,1735320638924,-1522.58,0.00010828,2]
[346844213,1735320638935,-752.44,0.00010828,2]
[346844215,1735320638944,-859.59,0.00010828,2]
[346844217,1735320638953,-500.0,0.00010829,2]
[346844219,1735320638963,-1163.27,0.00010829,2]
[346844221,1735320638973,-532.73,0.00010829,2]
[346844223,1735320638984,-951.13,0.00010829,2]
[346844225,1735320638994,-500.0,0.00010829,2]
[346844227,1735320639003,-500.0,0.00010829,2]
[346844229,1735320639012,-610.57,0.00010829,2]
[346844231,1735320639023,-651.95,0.00010829,2]
[346844233,1735320639033,-500.0,0.00010829,2]
[346844235,1735320639042,-500.0,0.00010829,2]
[346844237,1735320639052,-500.0,0.00010829,2]
[346844239,1735320639061,-837.92,0.00010829,2]
[346844240,1735320639070,-571.89,0.00010829,2]
[346844241,1735320639079,-500.0,0.00010829,2]
[346844242,1735320639090,-800.92,0.00010829,2]
[346844243,1735320639100,-500.0,0.00010829,2]
[346844244,1735320639109,-775.94,0.00010829,2]
[346844245,1735320639118,-500.0,0.00010829,2]
[346844246,1735320639127,-2868.56,0.00010829,2]
[346844247,1735320639136,-500.0,0.00010829,2]
[346844248,1735320639146,-500.0,0.00010829,2]
[346844249,1735320639156,-500.0,0.00010829,2]
[346844251,1735320639165,-814.66,0.00010829,2]
[346844253,1735320639175,-705.31,0.00010829,2]
[346844254,1735320639184,-1438.0,0.00010829,2]
[346844256,1735320639193,-500.0,0.00010829,2]
[346844258,1735320639202,-500.0,0.00010829,2]
[346844260,1735320639212,-500.0,0.00010829,2]
[346844262,1735320639222,-500.0,0.00010829,2]
[346844264,1735320639231,-500.0,0.00010829,2]
[346844266,1735320639240,-1583.97,0.00010829,2]
[346844268,1735320639249,-887.52,0.00010829,2]
[346844270,1735320639258,-500.0,0.00010829,2]
[346844272,1735320639268,-868.93,0.00010829,2]
[346844274,1735320639278,-500.0,0.00010829,2]
[346844276,1735320639288,-747.65,0.00010829,2]
[346844278,1735320639297,-500.0,0.00010829,2]
[346844280,1735320639306,-2623.96,0.00010829,2]
[346844282,1735320639315,-1352.42,0.00010829,2]
[346844284,1735320639324,-500.0,0.00010829,2]
[346844286,1735320639335,-500.0,0.00010829,2]
[346844287,1735320639345,-1041.72,0.00010829,2]
[346844289,1735320639354,-1888.67,0.00010829,2]
[346844292,1735320639364,-606.2,0.00010829,2]
[346844293,1735320639373,-500.0,0.00010829,2]
[346844295,1735320639382,-554.18,0.00010829,2]
[346844297,1735320639392,-627.98,0.00010829,2]
[346844299,1735320639401,-1045.31,0.00010829,2]
[346844301,1735320639411,-523.49,0.00010829,2]
[346844303,1735320639421,-1192.869132,0.00010829,2]
[346844305,1735320639431,-1280.59,0.00010829,2]
[346844307,1735320639440,-500.0,0.00010829,2]
[346844309,1735320639450,-924.29,0.00010829,2]
[346844311,1735320639459,-970.838854,0.00010829,2]
[346844313,1735320639469,-516.24,0.00010829,2]
[346844315,1735320639478,-502.15,0.00010829,2]
[346844317,1735320639488,-763.01,0.00010829,2]
[346844319,1735320639497,-500.62,0.00010829,2]
[346844321,1735320639506,-597.56,0.00010829,2]
[346844323,1735320639515,-500.0,0.00010829,2]
[346844325,1735320639525,-9227.75,0.00010829,2]
[346844327,1735320639534,-517.88,0.00010829,2]
[346844329,1735320639544,-1301.61,0.00010829,2]
[346844331,1735320639553,-1197.22,0.00010829,2]
[346844333,1735320639562,-1261.9,0.00010829,2]
[346844335,1735320639571,-500.0,0.00010829,2]
[346844337,1735320639580,-762.26,0.00010829,2]
[346844338,1735320639591,-500.0,0.00010829,2]
[346844340,1735320639600,-1183.66,0.00010829,2]
[346844342,1735320639610,-500.0,0.00010829,2]
[346844344,1735320639620,-1524.49,0.00010829,2]
[346844346,1735320639630,-934.41,0.00010829,2]
[346844348,1735320639639,-2111.05,0.00010829,2]
[346844350,1735320639649,-500.0,0.00010829,2]
[346844352,1735320639658,-924.11,0.00010829,2]
[346844354,1735320639669,-605.11,0.00010829,2]
[346844356,1735320639679,-1585.01,0.00010829,2]
[346844358,1735320639688,-751.55,0.00010829,2]
[346844360,1735320639698,-2210.44,0.00010829,2]
[346844362,1735320639708,-802.5,0.00010829,2]
[346844364,1735320639718,-3072.07,0.00010829,2]
[346844366,1735320639728,-500.0,0.00010829,2]
[346844368,1735320639738,-902.49,0.00010829,2]
[346844370,1735320639747,-1426.35,0.00010829,2]
[346844372,1735320639757,-550.73,0.00010829,2]
[346844374,1735320639766,-500.0,0.00010829,2]
[346844376,1735320639775,-272.26588175,0.00010829,2]
[346844383,1735320639843,-227.73411825,0.00010829,2]
[346844385,1735320639853,-500.0,0.00010829,2]
[346844386,1735320639862,-1718.70988175,0.00010829,2]
[346844387,1735320639874,-386.69011825,0.00010829,2]
[346844388,1735320639884,-420.34391921,0.00010829,2]
[346844389,1735320639931,-500.0,0.00010554,2]
[346844390,1735320639941,-8795.08608079,0.00010829,2]
[346844391,1735320639951,-5992.98,0.00010829,2]
[346844394,1735320639961,-1138.04322716,0.00010829,2]
[346844397,1735320639973,-939.21051548,0.00010829,2]
[346844401,1735320640015,-582.98,0.00010554,2]
[346844402,1735320640025,-17.02,0.00010829,2]
[346844403,1735320640037,-348.355,0.00010829,2]
[346844409,1735320641062,-500.0,0.00010455,2]
[346844410,1735320641126,-500.0,0.00010455,2]
[346844411,1735320641136,-432.02,0.00010554,2]
[346844412,1735320641605,-80.06802706,0.00010554,2]
[346844413,1735320641615,-500.0,0.00010828,2]
[346844414,1735320641625,-394.49509759,0.00010828,2]
[346844415,1735320641644,-188.48490241,0.00010828,2]
[346844416,1735320641654,-1935.99750726,0.00010829,2]
[346844417,1735320641666,-18900.6237501,0.00010829,2]
[346844418,1735320641676,-658.16,0.00010829,2]
[346844419,1735320641686,-4393.2,0.00010829,2]
[346844420,1735320641695,-658.9136358,0.00010829,2]
[346844421,1735320641999,-248.6363642,0.00010829,2]
[346844422,1735320642008,-237.32741641,0.00010829,2]
[346844423,1735320642020,-609.34258359,0.00010829,2]
[346844424,1735320642030,-1724.57,0.00010829,2]
[346844425,1735320642040,-992.53,0.00010829,2]
[346844426,1735320642051,-766.79,0.00010829,2]
[346844427,1735320642060,-883.62,0.00010829,2]
[346844428,1735320642070,-1412.28,0.00010829,2]
[346844429,1735320642080,-3523.92,0.00010829,2]
[346844430,1735320642094,-331.21573237,0.00010829,2]
[346844431,1735320642103,-31.79532686,0.00010829,2]
[346844432,1735320642202,-753.01467314,0.00010829,2]
[346844433,1735320642212,-194.71478686,0.00010829,2]
[346844434,1735320642231,-663.88521314,0.00010829,2]
[346844435,1735320642241,-909.12,0.00010829,2]
[346844436,1735320642250,-500.0,0.00010829,2]
[346844437,1735320642260,-2917.12,0.00010829,2]
[346844438,1735320642270,-879.38,0.00010829,2]
[346844439,1735320642279,-1236.47,0.00010829,2]
[346844440,1735320642289,-1159.33687695,0.00010829,2]
[346844465,1735320643566,-500.0,0.00010654,2]
[346844467,1735320643577,-183.85312305,0.00010829,2]
[346844469,1735320643588,-1419.65,0.00010829,2]
[346844471,1735320643597,-954.74,0.00010829,2]
[346844473,1735320643606,-1735.41,0.00010829,2]
[346844475,1735320643616,-1383.54,0.00010829,2]
[346844477,1735320643626,-1245.72,0.00010829,2]
[346844479,1735320643636,-799.44,0.00010829,2]
[346844481,1735320643645,-500.0,0.00010829,2]
[346844482,1735320643655,-109.13420691,0.00010829,2]
[346844483,1735320643774,-566.2,0.00010652,2]
[346844484,1735320643784,-390.86579309,0.00010829,2]
[346844485,1735320643794,-1941.24,0.00010829,2]
[346844486,1735320643804,-994.2,0.00010829,2]
[346844487,1735320643814,-1554.26,0.00010829,2]
[346844488,1735320643824,-947.61,0.00010829,2]
[346844489,1735320643836,-696.71,0.00010829,2]
[346844490,1735320643846,-2012.21,0.00010829,2]
[346844491,1735320643855,-513.97,0.00010829,2]
[346844492,1735320643865,-671.66,0.00010829,2]
[346844493,1735320643875,-867.83,0.00010829,2]
[346844494,1735320643886,-1503.11,0.00010829,2]
[346844495,1735320643896,-1330.88,0.00010829,2]
[346844496,1735320643911,-90.08300691,0.00010829,2]
[346844497,1735320643923,-1854.48699309,0.00010829,2]
[346844498,1735320643933,-500.0,0.0001083,2]
[346844499,1735320643943,-500.0,0.0001083,2]
[346844500,1735320643953,-500.0,0.0001083,2]
[346844501,1735320643963,-774.93,0.0001083,2]
[346844502,1735320643974,-500.0,0.0001083,2]
[346844503,1735320643985,-500.0,0.0001083,2]
[346844504,1735320643995,-500.0,0.0001083,2]
[346844505,1735320644004,-664.68,0.0001083,2]
[346844506,1735320644014,-523.08,0.0001083,2]
[346844507,1735320644024,-890.27,0.0001083,2]
[346844508,1735320644034,-979.39,0.0001083,2]
[346844509,1735320644044,-500.0,0.0001083,2]
[346844511,1735320644054,-500.0,0.0001083,2]
[346844513,1735320644064,-633.0,0.0001083,2]
[346844515,1735320644075,-500.0,0.0001083,2]
[346844516,1735320644087,-500.0,0.0001083,2]
[346844517,1735320644096,-500.0,0.0001083,2]
[346844518,1735320644107,-1198.83,0.0001083,2]
[346844519,1735320644116,-500.0,0.0001083,2]
[346844520,1735320644127,-500.0,0.0001083,2]
[346844521,1735320644137,-500.0,0.0001083,2]
[346844522,1735320644148,-774.56,0.0001083,2]
[346844523,1735320644162,-500.0,0.0001083,2]
[346844524,1735320644173,-761.22,0.0001083,2]
[346844525,1735320644183,-901.06,0.0001083,2]
[346844526,1735320644194,-500.0,0.0001083,2]
[346844527,1735320644204,-500.0,0.0001083,2]
[346844528,1735320644215,-555.85,0.0001083,2]
[346844529,1735320644226,-659.33,0.0001083,2]
[346844530,1735320644236,-500.0,0.0001083,2]
[346844531,1735320644246,-607.89,0.0001083,2]
[346844532,1735320644257,-500.0,0.0001083,2]
[346844533,1735320644267,-525.14,0.0001083,2]
[346844534,1735320644277,-1261.9,0.0001083,2]
[346844535,1735320644287,-500.0,0.0001083,2]
[346844536,1735320644297,-500.0,0.0001083,2]
[346844537,1735320644308,-889.05,0.0001083,2]
[346844538,1735320644319,-500.0,0.0001083,2]
[346844539,1735320644330,-500.0,0.0001083,2]
[346844540,1735320644651,-660.69,0.0001083,2]
[346844541,1735320644662,-747.85,0.0001083,2]
[346844542,1735320644673,-500.0,0.0001083,2]
[346844543,1735320644683,-621.34,0.0001083,2]
[346844544,1735320644693,-1215.56,0.0001083,2]
[346844545,1735320644703,-865.07,0.0001083,2]
[346844546,1735320644713,-500.0,0.0001083,2]
[346844547,1735320644723,-587.98,0.0001083,2]
[346844548,1735320644733,-983.4,0.0001083,2]
[346844549,1735320644742,-582.46,0.0001083,2]
[346844550,1735320644752,-843.73,0.0001083,2]
[346844551,1735320644762,-254.16847863,0.0001083,2]
[346844552,1735320644783,-245.83152137,0.0001083,2]
[346844553,1735320644792,-1187.55,0.0001083,2]
[346844554,1735320644803,-521.24,0.0001083,2]
[346844555,1735320644812,-51.83736994,0.0001083,2]
[346844556,1735320644828,-483.36263006,0.0001083,2]
[346844557,1735320644841,-518.41,0.0001083,2]
[346844558,1735320644851,-1389.38,0.0001083,2]
[346844559,1735320644861,-500.0,0.0001083,2]
[346844560,1735320644871,-643.33367987,0.0001083,2]
[346844562,1735320646299,-394.6158,0.00010554,2]
[346844563,1735320646311,-510.00939672,0.00010554,2]
[346844564,1735320646324,-161.71480328,0.00010554,2]
[346844565,1735320646334,-268.83459017,0.00010554,2]
[346844566,1735320646346,-245.69,0.00010555,2]
[346844567,1735320646355,-1066.34,0.00010828,2]
[346844568,1735320646365,-276.41632013,0.0001083,2]
[346844569,1735320646375,-886.58,0.0001083,2]
[346844570,1735320646385,-1406.12,0.0001083,2]
[346844571,1735320646395,-500.0,0.0001083,2]
[346844572,1735320646406,-500.0,0.0001083,2]
[346844573,1735320646416,-672.46,0.0001083,2]
[346844574,1735320646426,-500.0,0.0001083,2]
[346844575,1735320646436,-770.98,0.0001083,2]
[346844576,1735320646446,-756.3,0.0001083,2]
[346844577,1735320646457,-1145.97,0.0001083,2]
[346844578,1735320646466,-682.89,0.0001083,2]
[346844579,1735320646476,-500.0,0.0001083,2]
[346844580,1735320646487,-1970.39,0.0001083,2]
[346844581,1735320646497,-924.11,0.0001083,2]
[346844582,1735320646507,-1377.08,0.0001083,2]
[346844583,1735320646518,-500.0,0.0001083,2]
[346844584,1735320646527,-500.0,0.0001083,2]
[346844585,1735320646537,-542.26,0.0001083,2]
[346844586,1735320646547,-1924.11,0.0001083,2]
[346844587,1735320646556,-645.12,0.0001083,2]
[346844590,1735320646566,-1360.59,0.0001083,2]
[346844592,1735320646576,-951.82,0.0001083,2]
[346844593,1735320646585,-500.0,0.0001083,2]
[346844595,1735320646596,-1642.25,0.0001083,2]
[346844598,1735320646606,-500.0,0.0001083,2]
[346844600,1735320646616,-500.0,0.0001083,2]
[346844602,1735320646626,-973.39,0.0001083,2]
[346844604,1735320646635,-2167.31381241,0.00010873,2]
[346844605,1735320646647,-405.41765113,0.00010873,2]
[346844606,1735320646659,-426.4587781,0.00010873,2]
[346844607,1735320646672,-7937.07975836,0.00010873,2]
[346844608,1735320646682,-6943.97,0.00010873,2]
[346844609,1735320646692,-885.32,0.00010873,2]
[346844610,1735320646702,-3292.02,0.00010873,2]
[346844611,1735320646711,-9114.61024165,0.00010873,2]
[346844615,1735320646797,-9486.08975835,0.00010873,2]
[346844616,1735320646807,-500.0,0.00010873,2]
[346844617,1735320646817,-1245.88,0.00010873,2]
[346844618,1735320646827,-1370.69,0.00010873,2]
[346844619,1735320646836,-2280.53,0.00010873,2]
[346844620,1735320646847,-8182.79,0.00010873,2]
[346844621,1735320646856,-2123.75,0.00010873,2]
[346844622,1735320646866,-4524.59,0.00010873,2]
[346844623,1735320646875,-2224.63,0.00010873,2]
[346844624,1735320646886,-8308.17,0.00010873,2]
[346844625,1735320646900,-2213.88,0.00010873,2]
[346844626,1735320646910,-4522.5,0.00010873,2]
[346844627,1735320646919,-2107.94,0.00010873,2]
[346844628,1735320646929,-2126.49,0.00010873,2]
[346844629,1735320646938,-573.71,0.00010873,2]
[346844630,1735320646948,-3980.92,0.00010873,2]
[346844631,1735320646958,-5754.32,0.00010873,2]
[346844632,1735320646967,-2209.3,0.00010873,2]
[346844633,1735320646979,-4423.26,0.00010873,2]
[346844634,1735320646989,-2200.0,0.00010876,2]
[346844635,1735320646999,-800.0,0.00010876,2]
[346844636,1735320647008,-500.0,0.00010876,2]
[346844637,1735320647018,-1000.0,0.00010899,2]
[346844638,1735320647028,-1463.0,0.000109,2]
[346844639,1735320647038,-7471.81016421,0.000109,2]
[346844640,1735320647048,-883.776953,0.000109,2]
[346844641,1735320647058,-200.0,0.000109,2]
[346844642,1735320647068,-2000.0,0.000109,2]
[346844643,1735320647078,-200.0,0.000109,2]
[346844644,1735320647090,-4935.1913466,0.000109,2]
[346844645,1735320647100,-3000.0,0.000109,2]
[346844646,1735320647110,-18564.5878168,0.000109,2]
[346844647,1735320647120,-2200.0,0.000109,3]
[346844648,1735320647129,-165.83227182,0.000109,2]
[346844649,1735320647139,-167.25950434,0.00010914,2]
[346844650,1735320647149,-500.0,0.00010926,2]
[346844651,1735320647159,-500.0,0.00010926,2]
[346844652,1735320647169,-500.0,0.00010926,2]
[346844653,1735320647178,-500.0,0.00010926,2]
[346844654,1735320647188,-566.2,0.00010926,2]
[346844655,1735320647199,-500.0,0.00010926,2]
[346844656,1735320647208,-500.0,0.00010926,2]
[346844657,1735320647217,-393.70435079,0.00010926,2]
[346844658,1735320647227,-500.0,0.00010926,2]
[346844659,1735320647237,-500.0,0.00010926,2]
[346844660,1735320647247,-500.0,0.00010926,2]
[346844661,1735320647256,-336.59526512,0.00010926,2]
[346844662,1735320647266,-500.0,0.00010926,2]
[346844663,1735320647276,-500.0,0.00010926,2]
[346844664,1735320647286,-500.0,0.00010926,2]
[346844665,1735320647296,-500.0,0.00010926,2]
[346844666,1735320647306,-500.0,0.00010926,2]
[346844667,1735320647315,-500.0,0.00010926,2]
[346844668,1735320647325,-500.0,0.00010926,2]
[346844669,1735320647334,-500.0,0.00010926,2]
[346844670,1735320647348,-500.0,0.00010926,2]
[346844671,1735320647357,-500.0,0.00010926,2]
[346844672,1735320647367,-500.0,0.00010926,2]
[346844673,1735320647377,-500.0,0.00010926,2]
[346844674,1735320647387,-500.0,0.00010926,2]
[346844675,1735320647397,-500.0,0.00010926,2]
[346844676,1735320647407,-603.8653808,0.00010926,2]
[346844677,1735320647416,-500.0,0.00010926,2]
[346844678,1735320647426,-500.0,0.00010926,2]
[346844679,1735320647436,-500.0,0.00010926,2]
[346844680,1735320647446,-528.06,0.00010926,2]
[346844681,1735320647456,-652.13,0.00010926,2]
[346844682,1735320647467,-500.0,0.00010926,2]
[346844683,1735320647477,-500.0,0.00010926,2]
[346844684,1735320647486,-500.0,0.00010926,2]
[346844685,1735320647496,-500.0,0.00010926,2]
[346844686,1735320647506,-500.0,0.00010926,2]
[346844687,1735320647515,-500.0,0.00010926,2]
[346844688,1735320647525,-844.18,0.00010926,2]
[346844689,1735320647534,-500.0,0.00010926,2]
[346844690,1735320647544,-831.77,0.00010926,2]
[346844691,1735320647554,-500.0,0.00010926,2]
[346844692,1735320647563,-500.0,0.00010926,2]
[346844693,1735320647573,-500.0,0.00010926,2]
[346844694,1735320647583,-500.0,0.00010926,2]
[346844695,1735320647595,-500.0,0.00010926,2]
[346844696,1735320647604,-500.0,0.00010926,2]
[346844697,1735320647614,-500.0,0.00010926,2]
[346844698,1735320647623,-500.0,0.00010926,2]
[346844699,1735320647633,-500.0,0.00010926,2]
[346844700,1735320647643,-500.0,0.00010926,2]
[346844701,1735320647652,-500.0,0.00010926,2]
[346844702,1735320647662,-500.0,0.00010926,2]
[346844703,1735320647671,-500.0,0.00010926,2]
[346844704,1735320647681,-524.95,0.00010926,2]
[346844705,1735320647690,-554.01,0.00010926,2]
[346844706,1735320647700,-500.0,0.00010926,2]
[346844707,1735320647710,-500.0,0.00010926,2]
[346844708,1735320647719,-597.58,0.00010926,2]
[346844709,1735320647728,-238.23772235,0.00010926,2]
[346844710,1735320647737,-500.0,0.00010926,2]
[346844711,1735320647747,-500.0,0.00010926,2]
[346844712,1735320647757,-500.0,0.00010926,2]
[346844713,1735320647767,-776.82,0.00010926,2]
[346844714,1735320647777,-643.61,0.00010926,2]
[346844715,1735320647787,-845.11,0.00010926,2]
[346844716,1735320647796,-500.0,0.00010926,2]
[346844717,1735320647807,-500.0,0.00010926,2]
[346844718,1735320647816,-500.0,0.00010926,2]
[346844719,1735320647826,-500.0,0.00010926,2]
[346844720,1735320647836,-500.0,0.00010926,2]
[346844721,1735320647847,-500.0,0.00010926,2]
[346844722,1735320647857,-500.0,0.00010926,2]
[346844723,1735320647867,-815.77,0.00010926,2]
[346844724,1735320647877,-581.19,0.00010926,2]
[346844725,1735320647887,-707.77,0.00010926,2]
[346844726,1735320647896,-500.0,0.00010926,2]
[346844727,1735320647911,-500.0,0.00010926,2]
[346844728,1735320647920,-500.0,0.00010926,2]
[346844729,1735320647930,-500.0,0.00010926,2]
[346844730,1735320647940,-522.91,0.00010926,2]
[346844731,1735320647951,-500.0,0.00010926,2]
[346844732,1735320647960,-500.0,0.00010926,2]
[346844733,1735320647970,-500.0,0.00010926,2]
[346844734,1735320647983,-500.0,0.00010926,2]
[346844735,1735320647993,-500.0,0.00010926,2]
[346844736,1735320648002,-634.5,0.00010926,2]
[346844737,1735320648013,-698.01,0.00010926,2]
[346844738,1735320648022,-725.92,0.00010926,2]
[346844739,1735320648032,-500.0,0.00010926,2]
[346844740,1735320648042,-500.0,0.00010926,2]
[346844741,1735320648051,-500.0,0.00010926,2]
[346844742,1735320648061,-734.17,0.00010926,2]
[346844743,1735320648071,-956.94,0.00010926,2]
[346844744,1735320648081,-500.0,0.00010926,2]
[346844745,1735320648094,-500.0,0.00010926,2]
[346844746,1735320648104,-500.0,0.00010926,2]
[346844747,1735320648114,-567.96,0.00010926,2]
[346844748,1735320648123,-500.0,0.00010926,2]
[346844749,1735320648134,-500.0,0.00010926,2]
[346844750,1735320648143,-500.0,0.00010926,2]
[346844751,1735320648153,-500.0,0.00010926,2]
[346844752,1735320648163,-500.0,0.00010926,2]
[346844753,1735320648172,-500.0,0.00010926,2]
[346844754,1735320648182,-500.0,0.00010926,2]
[346844755,1735320648192,-560.84,0.00010926,2]
[346844756,1735320648201,-500.0,0.00010926,2]
[346844757,1735320648211,-500.0,0.00010926,2]
[346844758,1735320648220,-500.0,0.00010926,2]
[346844759,1735320648230,-500.0,0.00010926,2]
[346844760,1735320648239,-500.0,0.00010926,2]
[346844761,1735320648249,-500.0,0.00010926,2]
[346844762,1735320648259,-500.0,0.00010926,2]
[346844763,1735320648269,-500.0,0.00010926,2]
[346844764,1735320648279,-1706.09,0.00010926,2]
[346844765,1735320648289,-500.0,0.00010926,2]
[346844766,1735320648299,-810.96,0.00010926,2]